[Event "Czech Open-Rapid 2022"]
[Site "Pardubice"]
[Date "2022.07.21"]
[Round "7.32"]
[White "Stocek, Martin"]
[Black "Ptacek, Lubos"]
[Result "1-0"]
[ECO "D15"]
[WhiteElo "1851"]
[BlackElo "2049"]
[Annotator "NA RC"]
[PlyCount "55"]
[EventDate "2022.07.20"]
[EventType "swiss"]
[EventCountry "CZE"]
[SourceTitle "playchess.com"]
[Source "ChessBase"]
[SourceQuality "1"]
[TimeControl "1200+10"]

1. d4 {[%emt 0:00:02]} d5 {[%emt 0:00:02]} 2. c4 {[%emt 0:00:01]} c6 {[%emt 0:00:04]} 3. Nc3 {[%emt 0:00:04]} Nf6 {[%emt 0:00:04]} 4. Nf3 {[%emt 0:00:18]} Nbd7 {[%emt 0:00:17]} 5. cxd5 {[%emt 0:00:23]} cxd5 {[%emt 0:00:06]} 6. Bf4 {[%emt 0:00:03]} e6 {[%emt 0:00:27]} 7. e3 {[%emt 0:00:08]} Bb4 {[%emt 0:00:13]} 8. Bd3 {[%emt 0:00:35]} O-O {[%emt 0:00:11]} 9. O-O {[%emt 0:00:04]} b6 {[%emt 0:00:33]} 10. Nb5 {[%emt 0:00:54]} Bb7 {[%emt 0:01:01]} 11. a3 {[%emt 0:00:20]} Be7 {[%emt 0:00:31]} 12. Bc7 {[%emt 0:00:43]} Qe8 {[%emt 0:00:22]} 13. Nd6 {[%emt 0:00:05]} Bxd6 {[%emt 0:00:03]} 14. Bxd6 {[%emt 0:00:02]} Ne4 {[%emt 0:00:15]} 15. Bxf8 {[%emt 0:00:06]} Qxf8 {[%emt 0:00:00]} 16. Rc1 {[%emt 0:00:48]} Ndf6 {[%emt 0:00:18]} 17. Ne5 {[%emt 0:00:17]} Qd6 {[%emt 0:00:39]} 18. b4 {[%emt 0:02:42]} Qe7 {[%emt 0:00:56]} 19. Qc2 {[%emt 0:00:21]} Ne8 {[%emt 0:00:15]} 20. Nc6 {[%emt 0:02:40]} Qd6 {[%emt 0:00:35]} 21. b5 {[%emt 0:00:59]} Qxa3 {[%emt 0:00:54]} 22. Ra1 {[%emt 0:01:19]} Qd6 {[%emt 0:00:09]} 23. Nxa7 {[%emt 0:01:22]} N4f6 {[%emt 0:00:33]} 24. Nc6 {[%emt 0:00:17]} Rc8 {[%emt 0:00:32]} 25. Rfc1 {[%emt 0:00:10]} g6 {[%emt 0:00:19]} 26. Ra7 {[%emt 0:01:05]} Bxc6 {[%emt 0:00:04]} 27. bxc6 {[%emt 0:00:07]} e5 {[%emt 0:00:14]} 28. c7 {[%emt 0:00:26]} 1-0

[Event "Czech Open-Rapid 2022"]
[Site "Pardubice"]
[Date "2022.07.21"]
[Round "7.33"]
[White "Maklakova, Naomi"]
[Black "Laith, Kasib"]
[Result "1/2-1/2"]
[ECO "A48"]
[WhiteElo "1548"]
[BlackElo "2079"]
[Annotator "NA RC"]
[PlyCount "121"]
[EventDate "2022.07.20"]
[EventType "swiss"]
[EventCountry "CZE"]
[SourceTitle "playchess.com"]
[Source "ChessBase"]
[SourceQuality "1"]
[TimeControl "1200+10"]

1. d4 {[%emt 0:00:06]} Nf6 {[%emt 0:00:12]} 2. Nf3 {[%emt 0:00:03]} g6 {[%emt 0:00:03]} 3. c3 {[%emt 0:00:09]} Bg7 {[%emt 0:00:02]} 4. Bg5 {[%emt 0:00:03]} h6 {[%emt 0:00:04]} 5. Bxf6 {[%emt 0:00:05]} Bxf6 {[%emt 0:00:02]} 6. e4 {[%emt 0:00:03]} d6 {[%emt 0:00:12]} 7. Bd3 {[%emt 0:00:04]} Bg7 {[%emt 0:00:07]} 8. O-O {[%emt 0:00:03]} Nd7 {[%emt 0:00:22]} 9. Nbd2 {[%emt 0:00:05]} e5 {[%emt 0:00:02]} 10. Nb3 {[%emt 0:00:57]} O-O {[%emt 0:00:07]} 11. Qc2 {[%emt 0:00:30]} c5 {[%emt 0:00:51]} 12. dxc5 {[%emt 0:00:39]} Nxc5 {[%emt 0:00:07]} 13. Nxc5 {[%emt 0:00:02]} dxc5 {[%emt 0:00:01]} 14. Rad1 {[%emt 0:00:02]} Qa5 {[%emt 0:00:40]} 15. Bc4 {[%emt 0:00:23]} Bg4 {[%emt 0:00:22]} 16. Qe2 {[%emt 0:01:32]} Rad8 {[%emt 0:01:46]} 17. h3 {[%emt 0:00:03]} Bd7 {[%emt 0:00:27]} 18. Bd5 {[%emt 0:00:19]} Bb5 {[%emt 0:00:29]} 19. c4 {[%emt 0:00:05]} Ba6 {[%emt 0:02:44]} 20. Qc2 {[%emt 0:01:06]} b5 {[%emt 0:00:22]} 21. Nd2 {[%emt 0:01:43]} b4 {[%emt 0:00:50]} 22. Nb3 {[%emt 0:00:05]} Qb6 {[%emt 0:00:10]} 23. Rd3 {[%emt 0:00:48]} Bf6 {[%emt 0:00:53]} 24. Rfd1 {[%emt 0:00:31]} Kg7 {[%emt 0:00:02]} 25. Qe2 {[%emt 0:00:30]} Bc8 {[%emt 0:00:52]} 26. Qe3 {[%emt 0:00:29]} Be7 {[%emt 0:00:01]} 27. f4 {[%emt 0:00:45]} exf4 {[%emt 0:00:45]} 28. Qxf4 {[%emt 0:00:02]} a5 {[%emt 0:03:38]} 29. Kh1 {[%emt 0:00:31]} a4 {[%emt 0:00:02]} 30. Nc1 {[%emt 0:00:01]} Bg5 {[%emt 0:00:23]} 31. Qf3 {[%emt 0:00:31]} Qf6 {[%emt 0:01:39]} 32. b3 {[%emt 0:01:05]} Qxf3 {[%emt 0:00:17]} 33. Rxf3 {[%emt 0:00:06]} f5 {[%emt 0:00:59]} 34. e5 {[%emt 0:01:23]} Be6 {[%emt 0:00:31]} 35. Rfd3 {[%emt 0:01:03]} Kf7 {[%emt 0:01:15]} 36. Bxe6+ {[%emt 0:03:11]} Kxe6 {[%emt 0:00:01]} 37. Rxd8 {[%emt 0:00:05]} Rxd8 {[%emt 0:00:01]} 38. Rxd8 {[%emt 0:00:01]} Bxd8 {[%emt 0:00:01]} 39. Nd3 {[%emt 0:00:01]} axb3 {[%emt 0:00:57]} 40. axb3 {[%emt 0:00:02]} Be7 {[%emt 0:01:13]} 41. g4 {[%emt 0:02:11]} fxg4 {[%emt 0:00:44]} 42. hxg4 {[%emt 0:00:02]} h5 {[%emt 0:00:01]} 43. Nf4+ {[%emt 0:00:05]} Kf7 {[%emt 0:00:59]} 44. gxh5 {[%emt 0:00:13]} gxh5 {[%emt 0:00:02]} 45. Nxh5 {[%emt 0:00:06]} Ke6 {[%emt 0:00:10]} 46. Nf4+ {[%emt 0:01:03]} Kxe5 {[%emt 0:00:16]} 47. Ng6+ {[%emt 0:00:01]} Kd4 {[%emt 0:00:16]} 48. Nxe7 {[%emt 0:00:12]} Kc3 {[%emt 0:00:01]} 49. Kg2 {[%emt 0:01:01]} Kxb3 {[%emt 0:00:01]} 50. Kf2 {[%emt 0:00:01]} Kxc4 {[%emt 0:00:03]} 51. Ke2 {[%emt 0:00:00]} Kc3 {[%emt 0:00:25]} 52. Nd5+ {[%emt 0:00:02]} Kc2 {[%emt 0:00:04]} 53. Ne3+ {[%emt 0:00:02]} Kc3 {[%emt 0:00:05]} 54. Nd1+ {[%emt 0:01:06]} Kc2 {[%emt 0:00:02]} 55. Ne3+ {[%emt 0:00:01]} Kc1 {[%emt 0:00:29]} 56. Kd3 {[%emt 0:00:34]} b3 {[%emt 0:00:19]} 57. Nc4 {[%emt 0:00:01]} Kb1 {[%emt 0:00:31]} 58. Kc3 {[%emt 0:00:02]} Ka2 {[%emt 0:00:02]} 59. Nb2 {[%emt 0:00:37]} Ka3 {[%emt 0:00:05]} 60. Nc4+ {[%emt 0:00:02]} Ka2 {[%emt 0:00:10]} 61. Nb2 {[%emt 0:00:04]} 1/2-1/2

[Event "Czech Open-Rapid 2022"]
[Site "Pardubice"]
[Date "2022.07.21"]
[Round "7.34"]
[White "Juchelka, Marek"]
[Black "Kovalskyi, Roman"]
[Result "0-1"]
[ECO "B27"]
[WhiteElo "1803"]
[BlackElo "2056"]
[Annotator "NA RC"]
[PlyCount "78"]
[EventDate "2022.07.20"]
[EventType "swiss"]
[EventCountry "CZE"]
[SourceTitle "playchess.com"]
[Source "ChessBase"]
[SourceQuality "1"]
[TimeControl "1200+10"]

1. e4 {[%emt 0:00:02]} c5 {[%emt 0:00:00]} 2. Nf3 {[%emt 0:00:03]} g6 {[%emt 0:00:01]} 3. c3 {[%emt 0:00:08]} d5 {[%emt 0:00:01]} 4. exd5 {[%emt 0:00:02]} Qxd5 {[%emt 0:00:01]} 5. d4 {[%emt 0:00:02]} Bg7 {[%emt 0:00:02]} 6. Be3 {[%emt 0:00:08]} cxd4 {[%emt 0:00:31]} 7. Nxd4 {[%emt 0:00:15]} Nf6 {[%emt 0:00:12]} 8. Bb5+ {[%emt 0:00:04]} Bd7 {[%emt 0:00:03]} 9. Bxd7+ {[%emt 0:00:02]} Nbxd7 {[%emt 0:00:01]} 10. O-O {[%emt 0:00:02]} O-O {[%emt 0:00:02]} 11. h3 {[%emt 0:00:13]} Rfd8 {[%emt 0:00:06]} 12. Nd2 {[%emt 0:00:12]} Nb6 {[%emt 0:00:14]} 13. Qb3 {[%emt 0:00:47]} Rac8 {[%emt 0:00:16]} 14. Rac1 {[%emt 0:00:38]} Qxb3 {[%emt 0:00:29]} 15. N4xb3 {[%emt 0:00:01]} Nfd5 {[%emt 0:00:14]} 16. Bd4 {[%emt 0:00:47]} e5 {[%emt 0:00:01]} 17. Bxb6 {[%emt 0:00:40]} Nxb6 {[%emt 0:00:01]} 18. Ne4 {[%emt 0:00:01]} Nc4 {[%emt 0:00:20]} 19. Rc2 {[%emt 0:00:14]} b6 {[%emt 0:00:04]} 20. Nbd2 {[%emt 0:01:07]} Na5 {[%emt 0:00:31]} 21. f4 {[%emt 0:01:17]} exf4 {[%emt 0:01:51]} 22. Rxf4 {[%emt 0:00:02]} Bh6 {[%emt 0:00:02]} 23. Rh4 {[%emt 0:00:59]} Be3+ {[%emt 0:00:05]} 24. Kf1 {[%emt 0:00:01]} f5 {[%emt 0:00:02]} 25. Ke2 {[%emt 0:00:09]} Bxd2 {[%emt 0:03:33]} 26. Nxd2 {[%emt 0:00:07]} Re8+ {[%emt 0:00:02]} 27. Kf2 {[%emt 0:00:02]} Nb7 {[%emt 0:00:49]} 28. Rd4 {[%emt 0:01:15]} Nc5 {[%emt 0:01:18]} 29. Nc4 {[%emt 0:00:48]} Ne6 {[%emt 0:00:54]} 30. b3 {[%emt 0:07:04]} Nxd4 {[%emt 0:00:05]} 31. cxd4 {[%emt 0:00:02]} b5 {[%emt 0:00:28]} 32. Na3 {[%emt 0:00:13]} Rxc2+ {[%emt 0:00:16]} 33. Nxc2 {[%emt 0:00:00]} Rc8 {[%emt 0:00:03]} 34. Na3 {[%emt 0:00:11]} a6 {[%emt 0:00:14]} 35. Ke3 {[%emt 0:00:15]} Kf7 {[%emt 0:00:02]} 36. Kf4 {[%emt 0:00:02]} Kf6 {[%emt 0:00:14]} 37. g4 {[%emt 0:00:02]} g5+ {[%emt 0:00:15]} 38. Kf3 {[%emt 0:00:01]} Rc3+ {[%emt 0:00:10]} 39. Kg2 {[%emt 0:00:01]} f4 {[%emt 0:00:01]} 0-1

[Event "Czech Open-Rapid 2022"]
[Site "Pardubice"]
[Date "2022.07.21"]
[Round "7.35"]
[White "Chrz, Pavel"]
[Black "Lihotsky, Lukas"]
[Result "1/2-1/2"]
[ECO "B10"]
[WhiteElo "1986"]
[BlackElo "1935"]
[Annotator "TA"]
[PlyCount "62"]
[EventDate "2022.07.20"]
[EventType "swiss"]
[EventCountry "CZE"]
[SourceTitle "playchess.com"]
[Source "ChessBase"]
[SourceQuality "1"]
[TimeControl "1200+10"]

{[%evp 13,62,6,12,13,9,9,9,17,14,12,57,54,70,71,142,126,140,100,156,181,256,282,349,201,295,181,169,27,257,248,275,222,289,41,500,412,500,491,504,491,482,478,432,0,523,549,501,-284,783,-327,477]} 1. e4 {[%emt 0:02:57]} c6 {[%emt 0:00:01]} 2. c4 {[%emt 0:00:03][%cal Bc2c4,Bc4d5][%mdl 32]} d5 {[%emt 0:00:01]} 3. exd5 {[%emt 0:00:02]} cxd5 {[%emt 0:00:01]} 4. cxd5 {[%emt 0:00:01]} Nf6 {[%emt 0:00:01]} 5. Qa4+ {[%emt 0:00:11]} Nbd7 {[%emt 0:00:04]} 6. Nc3 {[%emt 0:00:03]} g6 {[%emt 0:00:02]} 7. Bc4 {[%emt 0:00:12]} Bg7 {[%emt 0:00:02]} 8. d3 {[%emt 0:00:08] B10: Caro-Kann: 2 d3 and 2 c4.} O-O {[%emt 0:00:03]} 9. Nf3 {[%emt 0:00:02]} a6 {[%emt 0:00:06]} 10. Qa3 {[%emt 0:00:04] The position is equal.} Nb6 {[%emt 0:01:09]} 11. Qb3 {[%emt 0:01:21]} Nbd7 {[%emt 0:02:20] Hoping for ...b5.} 12. a4 {[%emt 0:00:19] Inhibits b5.} Nc5 {[%emt 0:00:18]} 13. Qa3 {[%emt 0:00:26]} Qc7 {[%emt 0:00:44]} ({Black should play} 13... b6) 14. Be3 $1 $16 {[%emt 0:00:22] [#]} Ncd7 $146 {[%emt 0:00:57]} ({Predecessor:} 14... Nfd7 15. O-O b6 16. Rac1 Ne5 17. Nxe5 Bxe5 18. f4 Bd6 19. b4 Nb7 20. Qb2 Qd8 {1-0 (53) Vykouk,J (2051)-Dobrovoljc,V (1787) Budva 2013}) 15. Qxe7 {[%emt 0:01:22] White is more active.} Ng4 {[%emt 0:01:22]} (15... Re8 $142 16. d6 Rxe7 17. dxc7 Nf8) 16. O-O {[%emt 0:01:00] Strongly threatening d6.} Nge5 {[%emt 0:00:35]} (16... Bf6 $142 17. d6 Qb8) 17. Nxe5 $18 {[%emt 0:00:26]} Bxe5 {[%emt 0:00:04]} 18. Bh6 {[%emt 0:00:56]} (18. Ne4 $142) 18... Bxh2+ {[%emt 0:01:31]} 19. Kh1 {[%emt 0:00:02]} Bd6 {[%emt 0:00:03]} 20. Qe2 {[%emt 0:01:33]} ({Better is} 20. Qg5 $18) 20... Rd8 $2 {[%emt 0:00:15]} (20... Qd8 $1 $11 {and Black has nothing to worry.} 21. Qe3 Ne5) 21. Ne4 {[%emt 0:01:02]} Re8 {[%emt 0:01:58] ...f5 is the strong threat.} 22. Qf3 {[%emt 0:01:50]} Re5 {[%emt 0:01:55] aiming for ...Rh5+.} 23. g4 $40 {[%emt 0:01:32][%mdl 128] Prevents Rh5+. White attacks.} ({Stronger than} 23. Ng5 Rf5 24. Qe3 Nf6 $11) ({But not} 23. Nf6+ $2 Nxf6 24. g3 Rh5+ 25. Kg2 Bh3+ 26. Kg1 Bg4 $1 27. Qxf6 Be5 $19) (23. Nxd6 $18 Qxd6 24. Bf4) 23... f5 {[%emt 0:01:38][%mdl 8192]} (23... Rxe4 $1 $14 24. Qxe4 Nf6) 24. gxf5 {[%emt 0:05:07]} Rxf5 {[%emt 0:00:09] [#]} 25. Qxf5 {[%emt 0:00:01][%mdl 512]} gxf5 {[%emt 0:00:04]} 26. Rg1+ {[%emt 0:00:04]} Kf7 {[%emt 0:00:31]} (26... Kh8 $2 27. Bg7+ Kg8 28. Be5+ Kf7 29. Nxd6+ Kf8 30. Bf4) 27. Rg7+ {[%emt 0:00:39]} Ke8 {[%emt 0:00:16]} 28. Ng5 {[%emt 0:01:34]} (28. Rg8+ $18 Bf8 29. Ng5) 28... Qc5 $2 {[%emt 0:03:44][%mdl 8192]} (28... Qa5 $11) 29. Re1+ {[%emt 0:00:30]} Ne5 {[%emt 0:00:27]} 30. Rg8+ $4 {[%emt 0:00:42][%mdl 8192]} (30. Nf7 $18 {is the narrow road to win.} Qb4 31. Re2) 30... Ke7 $4 {[%emt 0:00:43][%mdl 8192] [#]} (30... Kd7 $19 31. Rg7+ Kd8 32. Rxe5 Bxe5 33. Nf7+ Ke8 34. Nxe5 Qxf2 35. Rg8+ Ke7 36. Bf8+ Kf6 37. Bg7+ Ke7) 31. Rg7+ $4 {[%emt 0:00:24][%mdl 8192]} (31. Rxe5+ $1 $18 {[%mdl 512] was the only winning move.} Bxe5 32. Bf8+ Kf6 33. Bxc5) 31... Ke8 $4 {[%emt 0:00:59][%mdl 40960] Weighted Error Value: White=0.97/Black=0.93. An unexpected result.} (31... Kd8 $19 {and life is good for Black.} 32. Rxe5 Bxe5 33. Nf7+ Ke8 34. Nxe5 Qxf2 35. Rg8+ Ke7 36. Bf8+ Kf6 37. Bg7+ Kg5 38. Bf6+ Kxf6 39. Ng4+ Kf7 40. Nxf2 Kxg8) 1/2-1/2

[Event "Czech Open-Rapid 2022"]
[Site "Pardubice"]
[Date "2022.07.21"]
[Round "7.36"]
[White "Maul, Maik"]
[Black "Danek, Pavel"]
[Result "1-0"]
[ECO "A40"]
[WhiteElo "1568"]
[BlackElo "1851"]
[Annotator "NA RC COMBH"]
[PlyCount "55"]
[EventDate "2022.07.20"]
[EventType "swiss"]
[EventCountry "CZE"]
[SourceTitle "playchess.com"]
[Source "ChessBase"]
[SourceQuality "1"]
[TimeControl "1200+10"]

1. d4 {[%emt 0:00:02]} e6 {[%emt 0:00:01]} 2. Nc3 {[%emt 0:00:02]} d5 {[%emt 0:00:02]} 3. Bf4 {[%emt 0:00:01]} c6 {[%emt 0:00:08]} 4. e3 {[%emt 0:00:01]} f5 {[%emt 0:00:02]} 5. f3 {[%emt 0:00:04]} Nf6 {[%emt 0:01:13]} 6. e4 fxe4 {[%emt 0:00:16]} 7. fxe4 {[%emt 0:00:02]} dxe4 {[%emt 0:00:22]} 8. Bc4 {[%emt 0:00:04]} Be7 {[%emt 0:02:05]} 9. Nge2 {[%emt 0:00:09]} O-O {[%emt 0:00:19]} 10. O-O {[%emt 0:00:02]} Nd5 {[%emt 0:01:05]} 11. Nxe4 {[%emt 0:00:15]} Nd7 {[%emt 0:01:55]} 12. Qd2 {[%emt 0:00:45]} N7f6 {[%emt 0:00:20]} 13. Nxf6+ {[%emt 0:00:10]} Bxf6 {[%emt 0:00:28]} 14. Be5 {[%emt 0:03:42]} Nb6 {[%emt 0:02:26]} 15. Bxf6 {[%emt 0:00:29]} Rxf6 {[%emt 0:00:39]} 16. Bb3 {[%emt 0:00:08]} Rxf1+ {[%emt 0:00:31]} 17. Rxf1 {[%emt 0:00:02]} c5 {[%emt 0:01:21]} 18. Qf4 {[%emt 0:00:19]} Qe7 {[%emt 0:00:47]} 19. dxc5 {[%emt 0:00:38]} Qxc5+ {[%emt 0:00:11]} 20. Kh1 {[%emt 0:00:02]} Qe7 {[%emt 0:00:36]} 21. Nd4 {[%emt 0:00:14]} Bd7 {[%emt 0:01:21]} 22. Re1 {[%emt 0:00:17]} Rf8 {[%emt 0:01:26]} 23. Qe4 {[%emt 0:00:39]} Qf6 {[%emt 0:01:23]} 24. h3 {[%emt 0:00:26]} Nd5 {[%emt 0:01:10]} 25. Nxe6 {[%emt 0:01:28]} Bxe6 {[%emt 0:00:59]} 26. Qxe6+ {[%emt 0:00:01]} Qxe6 {[%emt 0:00:27]} 27. Rxe6 {[%emt 0:00:01]} Nb6 {[%emt 0:00:51]} 28. Re8+ {[%emt 0:00:07]} 1-0

[Event "Czech Open-Rapid 2022"]
[Site "Pardubice"]
[Date "2022.07.21"]
[Round "7.37"]
[White "Jelinek, Ctibor"]
[Black "Chubar, Vladimir"]
[Result "0-1"]
[ECO "C00"]
[WhiteElo "1362"]
[BlackElo "1809"]
[Annotator "NA RC COMBH"]
[PlyCount "34"]
[EventDate "2022.07.20"]
[EventType "swiss"]
[EventCountry "CZE"]
[SourceTitle "playchess.com"]
[Source "ChessBase"]
[SourceQuality "1"]
[TimeControl "1200+10"]

1. e4 {[%emt 0:00:03]} e6 {[%emt 0:00:01]} 2. Nf3 {[%emt 0:00:04]} d5 {[%emt 0:00:03]} 3. e5 {[%emt 0:00:04]} c5 {[%emt 0:00:37]} 4. c3 {[%emt 0:00:08]} Nc6 {[%emt 0:00:37]} 5. d4 {[%emt 0:00:10]} Qb6 {[%emt 0:00:12]} 6. a4 {[%emt 0:01:05]} Nh6 {[%emt 0:01:41]} 7. Bb5 {[%emt 0:01:36]} Nf5 {[%emt 0:01:12]} 8. g4 {[%emt 0:00:25]} Nfe7 {[%emt 0:00:42]} 9. Be3 {[%emt 0:01:37]} cxd4 {[%emt 0:01:21]} 10. Bxd4 {[%emt 0:00:29]} Qc7 {[%emt 0:00:16]} 11. Qd2 {[%emt 0:01:56]} Bd7 {[%emt 0:00:14]} 12. Qe3 {[%emt 0:01:11]} h5 {[%emt 0:00:54]} 13. g5 {[%emt 0:00:13]} Nf5 {[%emt 0:00:18]} 14. Qd2 {[%emt 0:00:46]} g6 {[%emt 0:00:12]} 15. h4 {[%emt 0:01:34]} Rc8 {[%emt 0:02:52]} 16. Na3 {[%emt 0:02:16]} Nfxd4 {[%emt 0:01:28]} 17. cxd4 {[%emt 0:00:19]} Bb4 {[%emt 0:00:13]} 0-1

[Event "Czech Open-Rapid 2022"]
[Site "Pardubice"]
[Date "2022.07.21"]
[Round "7.38"]
[White "Shystarova, Svitlana"]
[Black "Rakshan V M"]
[Result "1-0"]
[ECO "B06"]
[WhiteElo "1836"]
[BlackElo "1098"]
[Annotator "NA RC COMBH"]
[PlyCount "37"]
[EventDate "2022.07.20"]
[EventType "swiss"]
[EventCountry "CZE"]
[SourceTitle "playchess.com"]
[Source "ChessBase"]
[SourceQuality "1"]
[TimeControl "1200+10"]

1. e4 g6 {[%emt 0:00:04]} 2. d4 {[%emt 0:00:03]} Bg7 {[%emt 0:00:03]} 3. Nf3 {[%emt 0:00:03]} d6 {[%emt 0:00:02]} 4. Bc4 {[%emt 0:00:23]} Bg4 {[%emt 0:00:17]} 5. Bxf7+ {[%emt 0:00:28]} Kf8 {[%emt 0:00:05]} 6. Bxg8 {[%emt 0:01:08]} Kxg8 {[%emt 0:00:23]} 7. h3 {[%emt 0:00:14]} Bxf3 {[%emt 0:00:11]} 8. gxf3 {[%emt 0:00:18]} Nc6 {[%emt 0:00:02]} 9. Be3 {[%emt 0:00:03]} h6 {[%emt 0:00:36]} 10. Qd3 {[%emt 0:00:08]} Kh7 {[%emt 0:00:10]} 11. h4 {[%emt 0:00:10]} e5 {[%emt 0:00:12]} 12. d5 {[%emt 0:00:26]} h5 {[%emt 0:00:48]} 13. dxc6 {[%emt 0:00:19]} bxc6 {[%emt 0:00:04]} 14. Nd2 {[%emt 0:00:24]} Rf8 {[%emt 0:00:20]} 15. O-O-O {[%emt 0:00:11]} a5 {[%emt 0:00:27]} 16. Rdg1 {[%emt 0:00:49]} a4 {[%emt 0:00:11]} 17. a3 {[%emt 0:00:10]} d5 {[%emt 0:00:09]} 18. exd5 {[%emt 0:00:10]} cxd5 {[%emt 0:00:01]} 19. Qxg6+ {[%emt 0:00:02]} 1-0

[Event "Czech Open-Rapid 2022"]
[Site "Pardubice"]
[Date "2022.07.21"]
[Round "7.39"]
[White "Contos, Vaclav sr"]
[Black "Savitha Shri B"]
[Result "1-0"]
[ECO "E81"]
[WhiteElo "2074"]
[BlackElo "2278"]
[Annotator "TA"]
[PlyCount "78"]
[EventDate "2022.07.20"]
[EventType "swiss"]
[EventCountry "CZE"]
[SourceTitle "playchess.com"]
[Source "ChessBase"]
[SourceQuality "1"]
[TimeControl "1200+10"]

{[%evp 18,78,68,64,75,62,65,63,80,64,74,59,57,58,75,76,108,104,153,110,155,156,168,167,173,166,181,146,151,0,241,231,218,167,166,129,160,133,123,89,92,-12,-12,-8,-8,-9,-8,-200,-173,-397,-409,-725,-696,-910,-883,-11181,-6337,-7376,-8002,-5779,-4990,-29980,-29980]} 1. d4 {[%emt 0:00:02]} Nf6 {[%emt 0:00:01]} 2. c4 {[%emt 0:00:01]} g6 {[%emt 0:00:01]} 3. f3 {[%emt 0:00:01]} Bg7 {[%emt 0:00:02]} 4. e4 {[%emt 0:00:01]} d6 {[%emt 0:00:01]} 5. Nc3 {[%emt 0:00:02]} O-O {[%emt 0:00:02]} 6. Nge2 {[%emt 0:00:01]} Nbd7 {[%emt 0:00:03]} 7. Be3 {[%emt 0:00:07]} e5 {[%emt 0:00:02]} 8. d5 {[%emt 0:00:10]} Ne8 {[%emt 0:00:06]} 9. Qd2 {[%emt 0:00:17]} f5 {[%emt 0:00:11]} 10. O-O-O {[%emt 0:00:22] White is more active.} f4 {[%emt 0:00:02] E87: King's Indian: Sämisch: 6...e5 7 d5.} 11. Bf2 {[%emt 0:00:04]} a5 {[%emt 0:00:10]} 12. Kb1 {[%emt 0:00:05]} Nc5 {[%emt 0:00:14] White is slightly better.} 13. Nc1 {[%emt 0:00:08]} Bd7 {[%emt 0:00:53]} 14. Nd3 {[%emt 0:00:12]} b6 {[%emt 0:00:20]} 15. Be2 {[%emt 0:00:13] [#]} Rb8 $146 {[%emt 0:00:17]} ({Predecessor:} 15... Nxd3 16. Bxd3 Kh8 17. Bc2 Bf6 18. g3 Bg5 19. Qe2 Ng7 20. Be1 Be7 21. Ba4 Bxa4 22. Nxa4 {½-½ (45) Boleslavsky,I-Troianescu,O Bucharest 1953}) 16. g3 {[%emt 0:00:30]} fxg3 {[%emt 0:00:23]} 17. hxg3 {[%emt 0:00:03]} Qe7 {[%emt 0:01:44]} (17... Nxd3 $142 18. Qxd3 Bf6) 18. Rh2 {[%emt 0:00:15]} Nf6 {[%emt 0:01:40]} 19. g4 {[%emt 0:00:19]} Rf7 {[%emt 0:02:50]} 20. Be3 {[%emt 0:00:53]} Qf8 {[%emt 0:01:42]} 21. Rdh1 {[%emt 0:00:11]} Bh8 {[%emt 0:00:26]} 22. Bh6 {[%emt 0:00:44]} Qe7 {[%emt 0:00:09]} 23. Be3 $2 {[%emt 0:00:05]} ({Better is} 23. Nf2 $16) 23... Na4 $2 {[%emt 0:01:00]} (23... Qf8 $1 $11) 24. Nxa4 $18 {[%emt 0:01:00]} Bxa4 {[%emt 0:00:01]} 25. Bg5 {[%emt 0:00:23]} Bd7 {[%emt 0:00:10]} 26. Qc1 {[%emt 0:00:24]} Qe8 {[%emt 0:00:41]} 27. Rh4 {[%emt 0:00:40]} c6 {[%emt 0:00:09]} 28. R1h2 {[%emt 0:00:11]} b5 {[%emt 0:00:36]} 29. cxb5 {[%emt 0:00:05]} ({White should play} 29. Bxf6 $16 Bxf6 30. g5) 29... cxd5 $11 {[%emt 0:00:05]} 30. Bxf6 {[%emt 0:01:21]} Bxf6 {[%emt 0:00:03][%cal Bh8f6,Bf6d8,Bd8g5][%mdl 32]} 31. g5 {[%emt 0:00:00]} Bd8 {[%emt 0:00:42]} 32. Nf2 $2 {[%emt 0:00:41]} (32. Qh1 $11 Qe7 33. Nf2) 32... Bxb5 {[%emt 0:00:23]} 33. Bxb5 {[%emt 0:00:09]} (33. Ng4 {was worth a try.} Kh8 34. Bd1) 33... Qxb5 $19 {[%emt 0:00:03]} ({Inferior is} 33... Rxb5 34. exd5 Rc5 35. Qe3 $17) 34. Ng4 {[%emt 0:01:35]} (34. a4 $142 Qa6 35. Ng4 Qd3+ 36. Qc2 Qxc2+ 37. Rxc2 Rxf3 38. exd5) 34... Qd3+ {[%emt 0:02:21]} 35. Ka1 {[#] Strongly threatening Nh6+.} Bxg5 {[%emt 0:00:56][%mdl 512]} 36. Qh1 {[%emt 0:00:03]} (36. Qb1 Qxb1+) 36... Rxf3 {[%emt 0:00:26] ( -> ...Rf1+)} 37. Nf2 {[%emt 0:00:22]} Rxf2 {[%emt 0:01:16]} 38. Rxf2 {[%emt 0:00:02]} Bxh4 {[%emt 0:00:03]} 39. Rh2 {[%emt 0:00:28] [#]} Rf8 $1 {[%emt 0:01:00][%mdl 32768] What a bad dream for White.  Weighted Error Value: White=0.92/Black=0.25 (precise) . Loss on time!?} 1-0